[Event "4th Batumi Cup 2018"]
[Site "Batumi"]
[Date "2018.07.03"]
[Round "2"]
[White "Akhvlediani, Irakli"]
[Black "Smirnov, Pavel"]
[Result "0-1"]
[ECO "E06"]
[WhiteElo "2264"]
[BlackElo "2576"]
[Annotator "ChessBase"]
[PlyCount "94"]
[EventDate "2018.07.03"]
[EventType "swiss"]
[EventCountry "GEO"]
[SourceTitle "playchess.com"]
[Source "ChessBase"]
[SourceQuality "1"]
[TimeControl "40/5400+30:1800+30"]

1. d4 {[%emt 0:00:00]} d5 {[%emt 0:02:52]} 2. c4 {[%emt 0:00:00]} e6 {[%emt 0:00:08]} 3. Nf3 {[%emt 0:00:00]} Nf6 {[%emt 0:00:06]} 4. g3 {[%emt 0:00:00]} Be7 {[%emt 0:00:16]} 5. Bg2 {[%emt 0:00:02]} O-O {[%emt 0:00:04]} 6. O-O {[%emt 0:00:04]} c6 {[%emt 0:00:02]} 7. Qc2 {[%emt 0:00:07]} b6 {[%emt 0:00:04]} 8. Bf4 {[%emt 0:00:19]} Nh5 {[%emt 0:01:58]} 9. Bc1 {[%emt 0:00:49]} Nf6 {[%emt 0:00:05]} 10. Bf4 {[%emt 0:02:42]} Bb7 {[%emt 0:01:13]} 11. Ne5 {[%emt 0:01:16]} Nfd7 {[%emt 0:00:52]} 12. Rd1 {[%emt 0:02:52]} Nxe5 {[%emt 0:00:29]} 13. dxe5 {[%emt 0:00:05]} Na6 {[%emt 0:04:07]} 14. Nc3 {[%emt 0:08:40]} Rc8 {[%emt 0:00:07]} 15. h4 {[%emt 0:07:52]} b5 {[%emt 0:00:18]} 16. cxb5 {[%emt 0:20:52]} cxb5 {[%emt 0:00:07]} 17. Qb1 {[%emt 0:00:15]} Qb6 {[%emt 0:02:16]} 18. a4 {[%emt 0:09:16]} bxa4 {[%emt 0:04:57]} 19. Be3 {[%emt 0:06:14]} Qb3 {[%emt 0:00:07]} 20. Rd3 {[%emt 0:00:57]} Qc4 {[%emt 0:00:35]} 21. Rd4 {[%emt 0:17:47]} Qc7 {[%emt 0:03:29]} 22. Rdxa4 {[%emt 0:00:17]} Nb4 {[%emt 0:00:29]} 23. Rxa7 {[%emt 0:06:40]} Nc6 {[%emt 0:00:24]} 24. R7a4 {[%emt 0:00:59]} Nxe5 {[%emt 0:05:58]} 25. Bf4 {[%emt 0:00:26]} Rfd8 {[%emt 0:04:32]} 26. Nb5 {[%emt 0:07:37]} Qb8 {[%emt 0:01:21]} 27. Ra7 {[%emt 0:01:06]} Rd7 {[%emt 0:00:41]} 28. b4 {[%emt 0:03:45]} Rc4 {[%emt 0:04:12]} 29. R1a4 {[%emt 0:00:57]} Rxf4 {[%emt 0:09:43]} 30. gxf4 {[%emt 0:02:20]} Nc6 {[%emt 0:00:06]} 31. f5 {[%emt 0:00:16]} Nxa7 {[%emt 0:01:25]} 32. fxe6 {[%emt 0:00:04]} Nxb5 {[%emt 0:04:56]} 33. exd7 {[%emt 0:00:30]} Nc3 {[%emt 0:00:05]} 34. Qc2 {[%emt 0:01:09]} Nxa4 {[%emt 0:00:09]} 35. Qxa4 {[%emt 0:00:16]} Qc7 {[%emt 0:01:15]} 36. Bh3 {[%emt 0:00:04]} Bxh4 {[%emt 0:02:56]} 37. Qa7 {[%emt 0:01:08]} g6 {[%emt 0:03:55]} 38. Qe3 {[%emt 0:00:35]} Kg7 {[%emt 0:42:41]} 39. b5 {[%emt 0:00:32]} Bf6 {[%emt 0:01:57]} 40. Qe8 {[%emt 0:00:00]} Qc1+ {[%emt 0:00:00]} 41. Kg2 {[%emt 0:01:40]} Qg5+ {[%emt 0:05:01]} 42. Kf1 {[%emt 0:06:21]} d4 {[%emt 0:01:24]} 43. f3 {[%emt 0:00:03]} d3 {[%emt 0:02:47]} 44. exd3 {[%emt 0:00:29]} Bxf3 {[%emt 0:00:53]} 45. Kf2 {[%emt 0:01:10]} Qf4 {[%emt 1:02:31]} 46. d8=Q {[%emt 0:01:30]} Bxd8 {[%emt 0:00:14]} 47. Qxd8 {[%emt 0:00:11]} Bg4+ {[%emt 0:00:15]} 0-1

[Event "4th Batumi Cup 2018"]
[Site "Batumi"]
[Date "2018.07.03"]
[Round "2"]
[White "Mammadova, Narmin"]
[Black "Nigmatov, Ortik"]
[Result "0-1"]
[ECO "A46"]
[WhiteElo "2209"]
[BlackElo "2461"]
[Annotator "ChessBase"]
[PlyCount "90"]
[EventDate "2018.07.03"]
[EventType "swiss"]
[EventCountry "GEO"]
[SourceTitle "playchess.com"]
[Source "ChessBase"]
[SourceQuality "1"]
[TimeControl "40/5400+30:1800+30"]

1. d4 {[%emt 0:00:00]} Nf6 {[%emt 0:00:00]} 2. Nf3 {[%emt 0:00:30]} b5 {[%emt 0:02:23]} 3. e3 {[%emt 0:03:12]} a6 {[%emt 0:00:22]} 4. Bd3 {[%emt 0:06:23]} Bb7 {[%emt 0:00:56]} 5. Nbd2 {[%emt 0:02:00]} d5 {[%emt 0:04:04]} 6. c3 {[%emt 0:06:15]} e6 {[%emt 0:00:33]} 7. Ne5 {[%emt 0:07:57]} Nbd7 {[%emt 0:01:18]} 8. f4 {[%emt 0:03:08]} Bd6 {[%emt 0:00:38]} 9. Qf3 {[%emt 0:03:34]} c5 {[%emt 0:07:38]} 10. O-O {[%emt 0:06:32]} g6 {[%emt 0:02:39]} 11. Qh3 {[%emt 0:06:50]} Ne4 {[%emt 0:02:41]} 12. Ndf3 {[%emt 0:07:27]} Qe7 {[%emt 0:03:45]} 13. Bd2 {[%emt 0:06:47]} c4 {[%emt 0:03:47]} 14. Bc2 {[%emt 0:04:26]} Nb6 {[%emt 0:02:27]} 15. Be1 {[%emt 0:03:04]} O-O-O {[%emt 0:01:32]} 16. Nd2 {[%emt 0:05:05]} f6 {[%emt 0:02:01]} 17. Nef3 {[%emt 0:01:59]} h6 {[%emt 0:02:26]} 18. Nxe4 {[%emt 0:01:59]} dxe4 {[%emt 0:00:06]} 19. Nd2 {[%emt 0:00:19]} f5 {[%emt 0:00:40]} 20. b3 {[%emt 0:04:49]} g5 {[%emt 0:06:01]} 21. bxc4 {[%emt 0:03:45]} Nxc4 {[%emt 0:06:06]} 22. Nxc4 {[%emt 0:01:29]} bxc4 {[%emt 0:00:02]} 23. Bg3 {[%emt 0:05:19]} Qe8 {[%emt 0:03:34]} 24. Be1 {[%emt 0:01:40]} Rg8 {[%emt 0:02:35]} 25. Rb1 {[%emt 0:01:45]} Bd5 {[%emt 0:00:28]} 26. Bd1 {[%emt 0:01:34]} Kc7 {[%emt 0:04:15]} 27. Be2 {[%emt 0:03:03]} Qg6 {[%emt 0:00:41]} 28. g3 {[%emt 0:01:17]} Qf6 {[%emt 0:02:15]} 29. Qg2 {[%emt 0:01:02]} h5 {[%emt 0:01:55]} 30. Bd1 {[%emt 0:01:50]} h4 {[%emt 0:01:00]} 31. Qc2 {[%emt 0:00:16]} gxf4 {[%emt 0:01:27]} 32. exf4 {[%emt 0:00:25]} hxg3 {[%emt 0:00:55]} 33. hxg3 {[%emt 0:00:04]} Qh4 {[%emt 0:04:13]} 34. Qg2 {[%emt 0:01:18]} Qh6 {[%emt 0:00:24]} 35. Rb2 {[%emt 0:00:36]} Rg7 {[%emt 0:00:40]} 36. a4 {[%emt 0:00:29]} Rdg8 {[%emt 0:02:18]} 37. a5 {[%emt 0:00:25]} Kc8 {[%emt 0:04:54]} 38. Ra2 {[%emt 0:00:24]} e3 {[%emt 0:05:10]} 39. Bf3 {[%emt 0:00:19]} Bxf4 {[%emt 0:00:21]} 40. Bxd5 {[%emt 0:00:00]} Bxg3 {[%emt 0:00:00]} 41. Bxg3 {[%emt 0:11:15]} Rxg3 {[%emt 0:00:38]} 42. Bxc4 {[%emt 0:02:47]} Rxg2+ {[%emt 0:02:46]} 43. Rxg2 {[%emt 0:00:06]} Rxg2+ {[%emt 0:00:06]} 44. Kxg2 {[%emt 0:00:04]} e5 {[%emt 0:00:11]} 45. Be2 {[%emt 0:04:25]} e4 {[%emt 0:00:43]} 0-1

[Event "4th Batumi Cup 2018"]
[Site "Batumi"]
[Date "2018.07.03"]
[Round "2"]
[White "Martynyuk, Elizaveta"]
[Black "Lomsadze, Davit"]
[Result "0-1"]
[ECO "C55"]
[WhiteElo "2182"]
[BlackElo "2348"]
[Annotator "NA"]
[PlyCount "76"]
[EventDate "2018.07.03"]
[EventType "swiss"]
[EventCountry "GEO"]
[SourceTitle "playchess.com"]
[Source "ChessBase"]
[SourceQuality "1"]
[TimeControl "40/5400+30:1800+30"]

1. e4 {[%emt 0:03:19]} e5 {[%emt 0:00:16]} 2. Nf3 {[%emt 0:00:06]} Nc6 {[%emt 0:00:05]} 3. Bc4 {[%emt 0:00:05]} Nf6 {[%emt 0:00:39]} 4. d3 {[%emt 0:00:07]} h6 {[%emt 0:00:11]} 5. O-O {[%emt 0:00:23]} d6 {[%emt 0:00:25]} 6. c3 {[%emt 0:00:14]} g6 {[%emt 0:01:45]} 7. Re1 {[%emt 0:00:56]} Bg7 {[%emt 0:00:16]} 8. d4 {[%emt 0:06:15]} Qe7 {[%emt 0:04:44]} 9. Nbd2 {[%emt 0:03:21]} O-O {[%emt 0:00:35]} 10. Nb3 {[%emt 0:01:19]} Bd7 {[%emt 0:02:48]} 11. Qc2 {[%emt 0:07:53]} Rae8 {[%emt 0:03:17]} 12. a4 {[%emt 0:05:34]} a6 {[%emt 0:02:59]} 13. dxe5 {[%emt 0:00:09]} Nxe5 {[%emt 0:00:28]} 14. Nxe5 {[%emt 0:00:12]} Qxe5 {[%emt 0:00:19]} 15. Bd2 {[%emt 0:05:51]} g5 {[%emt 0:05:23]} 16. f3 {[%emt 0:09:12]} g4 {[%emt 0:02:54]} 17. f4 {[%emt 0:01:02]} Qh5 {[%emt 0:00:17]} 18. g3 {[%emt 0:09:19]} Re7 {[%emt 0:01:50]} 19. Bd3 {[%emt 0:02:38]} Rfe8 {[%emt 0:02:23]} 20. Nd4 {[%emt 0:03:06]} c5 {[%emt 0:00:25]} 21. Nf5 {[%emt 0:00:38]} Bxf5 {[%emt 0:00:03]} 22. exf5 {[%emt 0:00:18]} d5 {[%emt 0:00:06]} 23. Rxe7 {[%emt 0:00:41]} Rxe7 {[%emt 0:00:04]} 24. Re1 {[%emt 0:00:14]} Ne4 {[%emt 0:02:23]} 25. Be3 {[%emt 0:01:43]} c4 {[%emt 0:01:39]} 26. Bxc4 {[%emt 0:10:34]} dxc4 {[%emt 0:01:17]} 27. Bc5 {[%emt 0:01:08]} Nxc5 {[%emt 0:00:52]} 28. Rxe7 {[%emt 0:00:07]} Nd3 {[%emt 0:00:52]} 29. Rxb7 {[%emt 0:06:23]} Qxf5 {[%emt 0:00:33]} 30. Qe2 {[%emt 0:01:36]} Qd5 {[%emt 0:11:45]} 31. Qe7 {[%emt 0:07:45]} Nc5 {[%emt 0:10:59]} 32. Rb8+ {[%emt 0:03:06]} Kh7 {[%emt 0:00:12]} 33. Rd8 {[%emt 0:00:27]} Qf5 {[%emt 0:00:20]} 34. Qe2 {[%emt 0:03:07]} Nxa4 {[%emt 0:04:14]} 35. Qxc4 {[%emt 0:00:11]} Nxb2 {[%emt 0:00:30]} 36. Qxa6 {[%emt 0:00:16]} Qc5+ {[%emt 0:00:36]} 37. Kg2 {[%emt 0:02:33]} Qxc3 {[%emt 0:02:13]} 38. Qe2 {[%emt 0:00:52]} Qc6+ {[%emt 0:00:31]} 0-1

[Event "4th Batumi Cup 2018"]
[Site "Batumi"]
[Date "2018.07.03"]
[Round "2"]
[White "Khalaji, Hanieh"]
[Black "Sattarov, Bobir"]
[Result "0-1"]
[ECO "C68"]
[WhiteElo "2146"]
[BlackElo "2328"]
[Annotator "NA"]
[PlyCount "100"]
[EventDate "2018.07.03"]
[EventType "swiss"]
[EventCountry "GEO"]
[SourceTitle "playchess.com"]
[Source "ChessBase"]
[SourceQuality "1"]
[TimeControl "40/5400+30:1800+30"]

1. e4 {[%emt 0:18:22]} e5 {[%emt 0:00:00]} 2. Nf3 {[%emt 0:00:45]} Nc6 {[%emt 0:00:05]} 3. Bb5 {[%emt 0:00:34]} a6 {[%emt 0:00:09]} 4. Bxc6 {[%emt 0:00:51]} dxc6 {[%emt 0:00:11]} 5. Nc3 {[%emt 0:01:18]} Bg4 {[%emt 0:09:09]} 6. h3 {[%emt 0:06:26]} Bh5 {[%emt 0:00:48]} 7. d3 {[%emt 0:02:43]} f6 {[%emt 0:00:44]} 8. Be3 {[%emt 0:00:56]} c5 {[%emt 0:00:20]} 9. Ne2 {[%emt 0:03:20]} b6 {[%emt 0:01:06]} 10. g4 {[%emt 0:04:08]} Bf7 {[%emt 0:00:11]} 11. Ng3 {[%emt 0:01:34]} Qd7 {[%emt 0:02:55]} 12. Qe2 {[%emt 0:00:57]} Ne7 {[%emt 0:00:51]} 13. g5 {[%emt 0:05:17]} O-O-O {[%emt 0:01:19]} 14. O-O-O {[%emt 0:09:20]} Qa4 {[%emt 0:01:26]} 15. a3 {[%emt 0:00:25]} Nc6 {[%emt 0:00:30]} 16. Kb1 {[%emt 0:06:07]} Nd4 {[%emt 0:02:42]} 17. Nxd4 {[%emt 0:01:50]} cxd4 {[%emt 0:00:10]} 18. Bc1 {[%emt 0:00:04]} fxg5 {[%emt 0:28:35]} 19. Qg4+ {[%emt 0:03:11]} Rd7 {[%emt 0:03:11]} 20. Qxg5 {[%emt 0:00:30]} Qb5 {[%emt 0:00:13]} 21. Ka1 {[%emt 0:01:42]} Qc6 {[%emt 0:01:11]} 22. Kb1 {[%emt 0:02:53]} Qb5 {[%emt 0:02:59]} 23. Ka1 {[%emt 0:00:18]} a5 {[%emt 0:42:45]} 24. Qg4 {[%emt 0:03:50]} h5 {[%emt 0:07:16]} 25. Qf5 {[%emt 0:04:04]} g6 {[%emt 0:02:35]} 26. Qf6 {[%emt 0:00:46]} Rg8 {[%emt 0:00:03]} 27. Nf1 {[%emt 0:21:19]} Bg7 {[%emt 0:01:06]} 28. Qf3 {[%emt 0:17:58]} Qc6 {[%emt 0:01:17]} 29. Qe2 {[%emt 0:16:44]} a4 {[%emt 0:02:28]} 30. Nh2 {[%emt 0:13:51]} Rgd8 {[%emt 0:01:20]} 31. Bg5 {[%emt 0:01:21]} Qe6 {[%emt 0:00:21]} 32. c4 {[%emt 0:00:42]} dxc3 {[%emt 0:00:08]} 33. bxc3 {[%emt 0:02:18]} Re8 {[%emt 0:03:50]} 34. Qc2 {[%emt 0:01:09]} Qd6 {[%emt 0:00:37]} 35. Qxa4 {[%emt 0:00:15]} Kb7 {[%emt 0:00:07]} 36. Qb4 {[%emt 0:00:27]} Qe6 {[%emt 0:00:16]} 37. c4 {[%emt 0:00:17]} Qxh3 {[%emt 0:00:38]} 38. Be3 {[%emt 0:00:23]} Bf8 {[%emt 0:00:18]} 39. c5 {[%emt 0:00:19]} Qe6 {[%emt 0:03:14]} 40. Qb2 {[%emt 0:00:00]} Red8 {[%emt 0:25:22]} 41. Nf3 {[%emt 0:05:09]} Rxd3 {[%emt 0:05:03]} 42. Rxd3 {[%emt 0:02:06]} Rxd3 {[%emt 0:00:02]} 43. Ng5 {[%emt 0:00:53]} Qb3 {[%emt 0:02:04]} 44. Nxf7 {[%emt 0:01:42]} Qxf7 {[%emt 0:00:02]} 45. Rc1 {[%emt 0:01:30]} Qe6 {[%emt 0:04:46]} 46. a4 {[%emt 0:01:09]} Kc8 {[%emt 0:04:15]} 47. Rc3 {[%emt 0:04:11]} Rd1+ {[%emt 0:00:36]} 48. Rc1 {[%emt 0:00:11]} Rxc1+ {[%emt 0:00:20]} 49. Qxc1 {[%emt 0:00:03]} Qc6 {[%emt 0:02:16]} 50. Qc4 {[%emt 0:00:58]} Bxc5 {[%emt 0:00:16]} 0-1

[Event "4th Batumi Cup 2018"]
[Site "Batumi"]
[Date "2018.07.03"]
[Round "2"]
[White "Stepanyan, Eva"]
[Black "Sindarov, Javokhir"]
[Result "0-1"]
[ECO "A42"]
[WhiteElo "2096"]
[BlackElo "2474"]
[Annotator "ChessBase"]
[PlyCount "56"]
[EventDate "2018.07.03"]
[EventType "swiss"]
[EventCountry "GEO"]
[SourceTitle "playchess.com"]
[Source "ChessBase"]
[SourceQuality "1"]
[TimeControl "40/5400+30:1800+30"]

1. d4 {[%emt 0:00:00]} g6 {[%emt 0:00:00]} 2. c4 {[%emt 0:00:00]} Bg7 {[%emt 0:00:03]} 3. Nc3 {[%emt 0:00:17]} d6 {[%emt 0:00:04]} 4. e4 {[%emt 0:00:09]} Nc6 {[%emt 0:01:03]} 5. Be3 {[%emt 0:01:35]} e5 {[%emt 0:00:30]} 6. d5 {[%emt 0:01:29]} Nce7 {[%emt 0:00:54]} 7. Bd3 {[%emt 0:02:58]} f5 {[%emt 0:03:07]} 8. f3 {[%emt 0:01:23]} Nf6 {[%emt 0:01:34]} 9. Nge2 {[%emt 0:06:19]} O-O {[%emt 0:01:00]} 10. O-O {[%emt 0:02:03]} f4 {[%emt 0:00:22]} 11. Bf2 {[%emt 0:00:47]} g5 {[%emt 0:00:10]} 12. b4 {[%emt 0:04:21]} Ng6 {[%emt 0:02:12]} 13. c5 {[%emt 0:03:05]} Rf7 {[%emt 0:01:22]} 14. cxd6 {[%emt 0:03:37]} cxd6 {[%emt 0:00:21]} 15. a4 {[%emt 0:06:06]} Bf8 {[%emt 0:01:21]} 16. a5 {[%emt 0:01:32]} g4 {[%emt 0:00:54]} 17. Kh1 {[%emt 0:01:13]} Rg7 {[%emt 0:00:53]} 18. Nb5 {[%emt 0:01:04]} Nh5 {[%emt 0:14:39]} 19. fxg4 {[%emt 0:15:08]} Bxg4 {[%emt 0:00:07]} 20. h3 {[%emt 0:01:16]} Bd7 {[%emt 0:00:27]} 21. Ng1 {[%emt 0:00:54]} Qg5 {[%emt 0:06:57]} 22. Nf3 {[%emt 0:01:10]} Qh6 {[%emt 0:00:12]} 23. Nh2 {[%emt 0:07:48]} Ng3+ {[%emt 0:00:54]} 24. Bxg3 {[%emt 0:00:14]} fxg3 {[%emt 0:00:03]} 25. Nf3 {[%emt 0:07:50]} Nf4 {[%emt 0:00:12]} 26. Kg1 {[%emt 0:04:52]} Bxh3 {[%emt 0:01:07]} 27. Ra2 {[%emt 0:04:37]} Bxg2 {[%emt 0:00:13]} 28. Re1 {[%emt 0:01:47]} Qh1# {[%emt 0:00:03]} 0-1

[Event "4th Batumi Cup 2018"]
[Site "Batumi"]
[Date "2018.07.04"]
[Round "3"]
[White "Smirnov, Pavel"]
[Black "Mgeladze, Tamaz"]
[Result "1-0"]
[ECO "E63"]
[WhiteElo "2576"]
[BlackElo "2374"]
[Annotator "ChessBase"]
[PlyCount "125"]
[EventDate "2018.07.03"]
[EventType "swiss"]
[EventCountry "GEO"]
[SourceTitle "playchess.com"]
[Source "ChessBase"]
[SourceQuality "1"]
[TimeControl "40/5400+30:1800+30"]

1. d4 {[%emt 0:06:28]} Nf6 {[%emt 0:00:05]} 2. c4 {[%emt 0:00:06]} g6 {[%emt 0:00:11]} 3. g3 {[%emt 0:00:05]} Bg7 {[%emt 0:00:21]} 4. Bg2 {[%emt 0:00:03]} O-O {[%emt 0:00:08]} 5. Nc3 {[%emt 0:00:19]} d6 {[%emt 0:00:42]} 6. Nf3 {[%emt 0:00:07]} Nc6 {[%emt 0:00:59]} 7. O-O {[%emt 0:00:06]} Rb8 {[%emt 0:00:31]} 8. Re1 {[%emt 0:00:26]} a6 {[%emt 0:03:13]} 9. Rb1 {[%emt 0:00:08]} Bf5 {[%emt 0:07:43]} 10. e4 {[%emt 0:00:09]} Bg4 {[%emt 0:00:02]} 11. Be3 {[%emt 0:00:37]} Re8 {[%emt 0:06:03]} 12. Qd3 {[%emt 0:04:54]} e5 {[%emt 0:04:20]} 13. d5 {[%emt 0:00:04]} Bxf3 {[%emt 0:04:29]} 14. Bxf3 {[%emt 0:01:30]} Nd4 {[%emt 0:00:02]} 15. Bg2 {[%emt 0:07:16]} c5 {[%emt 0:01:47]} 16. dxc6 {[%emt 0:00:06]} bxc6 {[%emt 0:00:17]} 17. b4 {[%emt 0:06:40]} Nd7 {[%emt 0:03:00]} 18. a3 {[%emt 0:00:06]} Qc7 {[%emt 0:15:09]} 19. Rec1 {[%emt 0:00:09]} Rb7 {[%emt 0:02:07]} 20. Ne2 {[%emt 0:02:17]} c5 {[%emt 0:07:40]} 21. Nc3 {[%emt 0:00:09]} Nb6 {[%emt 0:10:37]} 22. Nd5 {[%emt 0:03:03]} Nxd5 {[%emt 0:08:31]} 23. cxd5 {[%emt 0:00:12]} a5 {[%emt 0:01:47]} 24. Bf1 {[%emt 0:05:08]} axb4 {[%emt 0:00:43]} 25. axb4 {[%emt 0:00:33]} Reb8 {[%emt 0:03:16]} 26. bxc5 {[%emt 0:00:15]} Rxb1 {[%emt 0:00:28]} 27. Rxb1 {[%emt 0:00:16]} Rxb1 {[%emt 0:01:41]} 28. Qxb1 {[%emt 0:00:04]} dxc5 {[%emt 0:00:02]} 29. Qa2 {[%emt 0:00:20]} h6 {[%emt 0:06:22]} 30. Qa8+ {[%emt 0:01:32]} Kh7 {[%emt 0:00:05]} 31. Bc4 {[%emt 0:05:01]} Qd6 {[%emt 0:00:01]} 32. h4 {[%emt 0:12:01]} Bf6 {[%emt 0:01:11]} 33. Qe8 {[%emt 0:00:56]} Kg7 {[%emt 0:00:46]} 34. Kg2 {[%emt 0:02:12]} Qd8 {[%emt 0:01:24]} 35. Qxd8 {[%emt 0:06:14]} Bxd8 {[%emt 0:00:01]} 36. d6 {[%emt 0:00:30]} h5 {[%emt 0:05:20]} 37. f4 {[%emt 0:02:53]} exf4 {[%emt 0:04:46]} 38. Bxf4 {[%emt 0:01:28]} Kf8 {[%emt 0:00:43]} 39. e5 {[%emt 0:01:06]} Ba5 {[%emt 0:00:50]} 40. Kf2 {[%emt 0:00:00]} Ne6 {[%emt 0:00:00]} 41. Bh6+ {[%emt 0:03:50]} Ke8 {[%emt 0:02:57]} 42. Ke3 {[%emt 0:00:05]} Be1 {[%emt 0:02:03]} 43. Kf3 {[%emt 0:07:24]} Bc3 {[%emt 0:06:16]} 44. Ke4 {[%emt 0:01:58]} Be1 {[%emt 0:00:04]} 45. Kd5 {[%emt 0:11:09]} Bxg3 {[%emt 0:00:09]} 46. Bb5+ {[%emt 0:00:05]} Kd8 {[%emt 0:00:03]} 47. Bd2 {[%emt 0:00:25]} Bxh4 {[%emt 0:01:30]} 48. Ba5+ {[%emt 0:02:07]} Kc8 {[%emt 0:00:01]} 49. Be8 {[%emt 0:00:17]} Nd8 {[%emt 0:03:23]} 50. Bxd8 {[%emt 0:00:51]} Kxd8 {[%emt 0:03:35]} 51. Bxf7 {[%emt 0:00:54]} Bg5 {[%emt 0:00:29]} 52. Bxg6 {[%emt 0:01:42]} h4 {[%emt 0:00:04]} 53. Bf5 {[%emt 0:00:08]} Ke8 {[%emt 0:06:44]} 54. e6 {[%emt 0:00:41]} c4 {[%emt 0:02:08]} 55. Kxc4 {[%emt 0:00:53]} h3 {[%emt 0:00:38]} 56. Bxh3 {[%emt 0:00:20]} Bh4 {[%emt 0:01:27]} 57. Kd5 {[%emt 0:00:08]} Bg5 {[%emt 0:00:09]} 58. Bg4 {[%emt 0:00:07]} Kd8 {[%emt 0:00:27]} 59. Bh5 {[%emt 0:00:23]} Bh4 {[%emt 0:00:10]} 60. Ke4 {[%emt 0:00:24]} Bg5 {[%emt 0:00:10]} 61. Kf5 {[%emt 0:00:22]} Bh4 {[%emt 0:00:04]} 62. Kg6 {[%emt 0:00:17]} Bg3 {[%emt 0:00:20]} 63. e7+ {[%emt 0:00:05]} 1-0

[Event "4th Batumi Cup 2018"]
[Site "Batumi"]
[Date "2018.07.04"]
[Round "3"]
[White "Pourramezanali, Amirreza"]
[Black "Khomeriki, Nino"]
[Result "1/2-1/2"]
[ECO "D05"]
[WhiteElo "2537"]
[BlackElo "2257"]
[Annotator "ChessBase"]
[PlyCount "74"]
[EventDate "2018.07.03"]
[EventType "swiss"]
[EventCountry "GEO"]
[SourceTitle "playchess.com"]
[Source "ChessBase"]
[SourceQuality "1"]
[TimeControl "40/5400+30:1800+30"]

1. d4 {[%emt 0:13:54]} Nf6 {[%emt 0:00:00]} 2. Nf3 {[%emt 0:00:06]} d5 {[%emt 0:00:00]} 3. e3 {[%emt 0:00:13]} c5 {[%emt 0:00:20]} 4. c3 {[%emt 0:00:07]} Nc6 {[%emt 0:02:03]} 5. Bd3 {[%emt 0:00:45]} Bg4 {[%emt 0:00:35]} 6. O-O {[%emt 0:04:23]} e6 {[%emt 0:06:37]} 7. Nbd2 {[%emt 0:00:06]} Bd6 {[%emt 0:03:40]} 8. dxc5 {[%emt 0:06:18]} Bxc5 {[%emt 0:00:06]} 9. e4 {[%emt 0:01:21]} O-O {[%emt 0:03:42]} 10. Qc2 {[%emt 0:04:18]} Rc8 {[%emt 0:14:01]} 11. e5 {[%emt 0:04:02]} Nd7 {[%emt 0:00:24]} 12. h3 {[%emt 0:12:10]} Bxf3 {[%emt 0:03:46]} 13. Nxf3 {[%emt 0:00:11]} h6 {[%emt 0:18:30]} 14. Qe2 {[%emt 0:02:08]} Qc7 {[%emt 0:02:10]} 15. b4 {[%emt 0:05:41]} Bb6 {[%emt 0:02:47]} 16. Re1 {[%emt 0:11:03]} f6 {[%emt 0:01:40]} 17. exf6 {[%emt 0:01:07]} Rxf6 {[%emt 0:00:05]} 18. Be3 {[%emt 0:02:29]} Rcf8 {[%emt 0:05:43]} 19. b5 {[%emt 0:04:10]} Nce5 {[%emt 0:04:45]} 20. Nxe5 {[%emt 0:06:09]} Qxe5 {[%emt 0:00:09]} 21. Bxb6 {[%emt 0:00:22]} Qxe2 {[%emt 0:00:04]} 22. Rxe2 {[%emt 0:00:03]} axb6 {[%emt 0:00:19]} 23. Rd1 {[%emt 0:04:45]} Nc5 {[%emt 0:00:57]} 24. Bc2 {[%emt 0:00:05]} Ra8 {[%emt 0:04:04]} 25. c4 {[%emt 0:01:59]} dxc4 {[%emt 0:01:01]} 26. Rd4 {[%emt 0:00:04]} Kf8 {[%emt 0:00:19]} 27. Bd1 {[%emt 0:07:22]} Ra5 {[%emt 0:03:16]} 28. Rxc4 {[%emt 0:00:49]} Rxb5 {[%emt 0:00:24]} 29. Rd2 {[%emt 0:00:10]} Ke7 {[%emt 0:02:27]} 30. Bf3 {[%emt 0:00:15]} Rf7 {[%emt 0:04:04]} 31. Bxb7 {[%emt 0:07:17]} Nxb7 {[%emt 0:00:13]} 32. Rc7+ {[%emt 0:00:01]} Kf6 {[%emt 0:00:10]} 33. Rxf7+ {[%emt 0:00:02]} Kxf7 {[%emt 0:00:08]} 34. Rd7+ {[%emt 0:00:03]} Kf6 {[%emt 0:00:09]} 35. Rxb7 {[%emt 0:00:04]} Ra5 {[%emt 0:00:06]} 36. Rxb6 {[%emt 0:00:06]} Rxa2 {[%emt 0:00:06]} 37. g3 {[%emt 0:00:17]} Ra3 {[%emt 0:00:17]} 1/2-1/2